bitfinex-derivatives/quotes_ETHF0:USTF0_20251210
["timestamp","ask_amount","ask_price","bid_price","bid_amount"]
[1765329374624,5.49510306,3306.3,3306.2,0.20721828]
[1765329375223,5.2516135,3306.3,3306.2,0.20721828]
[1765329375423,5.25149623,3306.3,3306.2,0.20721828]
[1765329381028,1.4205,3305.3,3305.2,4.6565]
[1765329381231,0.7322,3304.8,3304.7,3.9482]
[1765329381421,2.03735621,3304.9,3304.8,1.4487]
[1765329381728,2.72565621,3304.9,3304.8,1.4487]
[1765329381928,2.72565621,3304.9,3304.8,0.7404]
[1765329382229,2.72565621,3304.9,3304.8,1.45152144]
[1765329382230,2.72901016,3304.9,3304.8,1.45152144]
[1765329382530,0.73555395,3304.9,3304.8,1.45152144]
[1765329382921,0.00335395,3304.9,3304.8,1.45152144]
[1765329383428,0.73555395,3304.9,3304.8,1.45152144]
[1765329383630,0.00335395,3304.9,3304.8,1.45152144]
[1765329384341,1.37955395,3304.9,3304.8,1.45152144]
[1765329385131,0.68615395,3304.9,3304.8,1.45152144]
[1765329385719,0.00335395,3304.9,3304.8,1.45152144]
[1765329388328,1.37955395,3304.9,3304.8,1.45152144]
[1765329389732,0.68615395,3304.9,3304.8,1.45152144]
[1765329390134,0.00335395,3304.9,3304.8,1.45152144]
[1765329390330,0.00453754,3305.2,3305.1,1.3797]
[1765329390635,0.68733754,3305.2,3305.1,1.3797]
[1765329390836,0.00453754,3305.2,3305.1,1.3797]
[1765329391334,0.00821657,3305.2,3305.1,1.3797]
[1765329391826,1.38441657,3305.2,3305.1,1.3797]
[1765329392033,1.38441657,3305.2,3305.1,0.6786]
[1765329393233,1.3762,3304.9,3304.8,1.38252144]
[1765329394636,1.98795621,3305.1,3305.0,1.3797]
[1765329394934,1.3762,3305.1,3305.0,1.3797]
[1765329396232,0.6828,3305.1,3305.0,1.3797]
[1765329396732,1.3762,3305.1,3305.0,1.3797]
[1765329397036,1.3762,3305.1,3305.0,0.6786]
[1765329397733,1.3762,3304.9,3304.8,1.38252144]
[1765329400532,1.3762,3304.9,3304.8,0.68142144]
[1765329401037,1.3762,3304.9,3304.8,1.38252144]
[1765329402439,1.3762,3304.9,3304.8,0.68142144]
[1765329402839,1.3762,3304.9,3304.8,1.38252144]
[1765329403142,0.6828,3304.9,3304.8,1.38252144]
[1765329403942,3.8906,3305.1,3305.0,1.3797]
[1765329405033,4.584,3305.1,3305.0,1.3797]
[1765329405635,1.3762,3304.9,3304.8,0.68142144]
[1765329406342,1.3762,3304.9,3304.8,1.38252144]
[1765329406538,0.6828,3304.9,3304.8,1.38252144]
[1765329406945,1.1071,3305.0,3304.9,1.3797]
[1765329408047,0.6828,3305.0,3304.9,1.3797]
[1765329409243,0.6828,3305.0,3304.8,0.00282144]
[1765329409244,1.3762,3304.9,3304.8,0.68142144]
[1765329410148,1.3762,3304.9,3304.8,0.00282144]
[1765329410749,1.3762,3304.4,3304.3,1.62645075]
[1765329410956,1.3762,3304.3,3304.2,0.6786]
[1765329411245,0.6828,3304.1,3304.0,3.00615075]
[1765329411449,5.19575621,3304.4,3304.3,0.6786]
[1765329411649,5.88915621,3304.4,3304.3,0.6786]
[1765329411851,6.52890938,3304.4,3304.3,0.68235436]
[1765329412142,5.88915621,3304.4,3304.3,1.38345436]
[1765329412851,5.88915621,3304.4,3303.8,3.2078]
[1765329412852,1.3762,3303.9,3303.8,3.2078]
[1765329413037,1.3762,3303.9,3303.5,0.4134]
[1765329413038,5.15201381,3303.9,3303.5,0.4134]
[1765329413244,3.2078,3303.9,3303.8,1.3503]
[1765329413449,4.08981507,3303.9,3303.8,0.6706]
[1765329413749,4.08981507,3303.9,3303.5,1.7637]
[1765329413937,1.30515621,3303.7,3303.5,1.0863639]
[1765329414138,3.2078,3303.9,3303.6,1.3503]
[1765329414445,4.51295621,3303.9,3303.8,1.3503]
[1765329414641,4.09610353,3303.9,3303.8,1.3503]
[1765329414946,3.2078,3303.9,3303.8,1.3503]
[1765329418047,3.2078,3303.9,3303.8,0.6706]
[1765329418247,3.2078,3303.9,3303.8,1.3503]
[1765329418952,3.2078,3303.9,3303.8,0.6706]
[1765329419153,3.2078,3303.9,3303.5,0.4157639]
[1765329419154,3.2078,3303.9,3303.5,1.7660639]
[1765329420848,3.2078,3303.9,3303.5,1.0863639]
[1765329421247,3.2078,3303.9,3303.5,0.4157639]
[1765329421455,1.33027216,3303.7,3303.5,0.4157639]
[1765329422151,3.2078,3303.9,3303.6,1.3503]
[1765329422347,3.2078,3303.9,3303.7,1.3503]
[1765329422543,3.2078,3303.9,3303.5,1.7660639]
[1765329422951,3.2078,3303.9,3303.5,0.4157639]
[1765329423156,3.2078,3303.9,3303.5,1.7660639]
[1765329423357,3.2078,3303.9,3303.8,0.6706]
[1765329423552,3.85422548,3303.9,3303.8,0.6706]
[1765329423953,3.85422548,3303.9,3303.5,1.0863639]
[1765329424255,3.2078,3303.9,3303.5,1.0863639]
[1765329424459,3.2078,3303.9,3303.8,1.3503]
[1765329427957,3.2078,3304.0,3303.9,1.3503]
[1765329428755,0.00821657,3305.2,3304.3,1.3503]
[1765329428756,3.2078,3304.4,3304.3,1.3503]
[1765329430454,3.8936,3304.4,3304.3,1.3503]
[1765329430858,3.2078,3304.4,3304.3,1.3503]
[1765329431260,4.6065,3304.8,3304.7,1.3503]
[1765329431459,3.8936,3304.8,3304.7,1.3503]
[1765329432062,3.2078,3304.8,3304.7,1.3503]
[1765329432959,4.61471657,3305.2,3305.1,1.3503]
[1765329433859,1.3987,3305.1,3305.0,0.4134]
[1765329434059,1.3987,3305.1,3304.5,0.4134]
[1765329434263,0.7168,3304.6,3304.5,1.7925]
[1765329434464,3.21601657,3305.2,3304.5,1.7925]
[1765329434762,3.93281657,3305.2,3305.1,1.3791]
[1765329435265,0.7168,3304.6,3304.5,1.7925]
[1765329435751,3.21601657,3305.2,3304.5,1.7925]
[1765329435954,4.64121657,3305.2,3305.1,0.6944]
[1765329436563,3.21601657,3305.2,3305.1,1.3791]
[1765329436858,4.64121657,3305.2,3305.1,0.6944]
[1765329437459,4.64121657,3305.2,3305.1,1.3791]
[1765329438960,3.21601657,3305.2,3305.1,1.3791]
[1765329439161,4.64121657,3305.2,3305.1,0.6944]
[1765329439364,4.64121657,3305.2,3305.1,1.3791]
[1765329439566,4.64121657,3305.2,3305.1,0.6944]
[1765329440266,4.64121657,3305.2,3305.1,1.3791]
[1765329440466,4.64121657,3305.2,3305.1,0.6944]
[1765329440656,1.4252,3305.1,3305.0,1.1154]
[1765329440860,1.4252,3304.8,3304.7,4.5869]
[1765329441060,1.4252,3304.6,3304.2,3.2078]
[1765329441268,1.4252,3304.3,3304.2,3.9022]
[1765329441468,1.4252,3304.3,3304.2,4.5869]
[1765329442967,1.4252,3304.3,3304.2,3.9022]
[1765329443471,1.4252,3304.3,3304.2,4.5869]
[1765329443667,1.4252,3304.3,3304.2,3.9022]
[1765329444260,1.4252,3304.3,3304.2,4.6064]
[1765329444566,3.2078,3304.8,3304.7,1.4486]
[1765329444764,1.46961657,3305.2,3305.1,1.4486]
[1765329445461,1.4614,3304.6,3304.5,1.147]
[1765329446168,0.7345,3304.6,3304.5,1.8512]
[1765329446561,1.4614,3304.6,3304.5,1.8512]
[1765329447369,1.4614,3304.3,3304.2,4.6564]
[1765329447665,1.4614,3304.3,3304.2,3.2078]
[1765329448068,1.4614,3304.3,3304.2,4.6564]
[1765329448370,0.7345,3304.3,3304.2,4.6564]
[1765329448670,1.4614,3304.3,3304.2,4.6564]
[1765329449758,1.4614,3304.3,3304.2,3.2078]
[1765329449964,1.4614,3304.1,3304.0,1.1578]
[1765329450165,0.7345,3304.1,3304.0,1.862]
[1765329450366,1.4614,3304.1,3304.0,1.862]
[1765329451073,0.7345,3304.1,3304.0,1.862]
[1765329451570,4.6692,3304.5,3304.4,0.7444]
[1765329452267,3.9423,3304.5,3304.4,1.4486]
[1765329452661,4.6692,3304.5,3304.4,1.4486]
[1765329454073,4.6692,3304.5,3304.4,0.7444]
[1765329454272,0.7345,3304.1,3304.0,1.862]
[1765329454467,1.4614,3304.1,3304.0,1.862]
[1765329455368,0.7345,3304.1,3304.0,1.862]
[1765329455569,1.4614,3304.1,3304.0,1.1578]
[1765329455775,1.4614,3303.9,3303.8,4.6564]
[1765329456577,0.7345,3303.9,3303.8,4.6564]
[1765329457375,2.11226888,3304.4,3304.3,1.4486]
[1765329458477,1.38536888,3304.4,3304.3,1.4486]
[1765329458671,2.11226888,3304.4,3304.3,0.7444]
[1765329458876,1.4614,3304.1,3304.0,1.8512]
[1765329459179,1.4614,3304.1,3304.0,1.147]
[1765329459375,1.4614,3304.1,3304.0,1.8512]
[1765329460468,4.6692,3304.5,3304.4,1.4486]
[1765329460673,0.65135034,3304.5,3304.4,1.4486]
[1765329460875,2.35689487,3304.9,3304.8,1.4486]
[1765329462179,1.62999487,3304.9,3304.8,1.4486]
[1765329462480,3.9423,3305.0,3304.9,1.4486]
[1765329462874,0.74271657,3305.2,3305.1,1.4486]
[1765329463777,0.00821657,3305.2,3305.1,1.4486]
[1765329464182,0.74271657,3305.2,3305.1,1.4486]
[1765329464382,0.00821657,3305.2,3305.1,1.4486]
[1765329465277,0.00821657,3305.2,3305.1,4.6564]
[1765329466183,0.6517161,3305.7,3305.6,1.4486]
[1765329466380,3.2078,3305.8,3305.7,1.4486]
[1765329467184,3.21006058,3305.8,3305.7,1.4486]
[1765329468780,0.00226058,3305.8,3305.7,1.4486]
[1765329469081,0.00453754,3306.1,3306.0,1.8512]
[1765329469782,0.00453754,3306.1,3305.4,2.95907146]
[1765329469783,1.4614,3305.5,3305.4,0.00453754]
[1765329469981,0.73817055,3305.5,3305.4,1.45563844]
[1765329470673,0.00367055,3305.5,3305.4,1.45563844]
[1765329474187,0.00453754,3306.1,3306.0,1.8986]
[1765329475280,0.00712496,3306.1,3306.0,1.8986]
[1765329475887,3.2078,3306.6,3306.5,1.8986]
[1765329476884,3.21147334,3306.6,3306.5,1.8986]
[1765329477192,0.00367334,3306.6,3306.5,5.1064]
[1765329477383,0.00453754,3306.9,3306.8,1.4538]
[1765329478504,0.00819597,3306.9,3306.8,1.4538]
[1765329479785,1.4679,3308.0,3307.9,0.722]
[1765329479987,0.727,3308.0,3307.9,1.4538]
[1765329480186,1.4679,3308.0,3307.9,1.4538]
[1765329480591,0.727,3308.0,3307.9,1.4538]
[1765329480886,1.4679,3308.4,3308.3,1.4538]
[1765329481081,1.4710959,3308.4,3308.3,1.4538]
[1765329481286,0.0031959,3308.4,3308.3,1.4538]
[1765329481885,0.00453754,3308.7,3308.6,1.4538]
[1765329482187,0.00453754,3308.7,3308.5,0.4448]
[1765329482188,3.9348,3309.2,3309.1,1.4538]
[1765329482389,3.2078,3309.2,3309.1,1.4538]
[1765329482687,40.8,3310.7,3309.6,1.4538]
[1765329482688,3.2078,3309.7,3309.6,1.4538]
[1765329482988,0.3485,3311.0,3310.1,1.4538]
[1765329482989,3.9348,3310.2,3310.1,1.4538]
[1765329483188,3.93743567,3310.2,3310.1,1.4538]
[1765329483396,0.72963567,3310.2,3310.1,4.6616]
[1765329483691,0.00263567,3310.2,3310.1,1.4538]
[1765329485184,0.72963567,3310.2,3310.1,1.4538]
[1765329485384,1.47053567,3310.2,3310.1,0.722]
[1765329485888,0.72963567,3310.2,3310.1,1.4538]
[1765329486088,0.00263567,3310.2,3310.1,1.4538]
[1765329488094,1.47053567,3310.2,3310.1,0.722]
[1765329488302,1.4679,3310.1,3310.0,1.1668]
[1765329489092,1.4679,3310.1,3309.5,3.6526]
[1765329489491,0.727,3309.6,3309.5,1.8986]
[1765329489995,3.2078,3310.0,3309.3,0.72653754]
[1765329489996,1.4679,3309.4,3309.3,0.72653754]
[1765329490392,1.4679,3309.4,3309.3,0.00453754]
[1765329493098,3.2078,3309.6,3309.5,1.8986]
[1765329493401,1.4326,3309.4,3309.3,0.00453754]
[1765329493994,1.4326,3309.4,3309.3,0.69883754]
[1765329494195,3.2078,3309.6,3309.5,0.6943]
[1765329494400,3.9273,3309.6,3309.5,1.7871]
[1765329495094,4.6404,3309.6,3309.5,1.1135]
[1765329495302,1.4326,3309.4,3309.3,0.00453754]
[1765329496194,7.4326,3309.4,3308.3,3.2078]
[1765329496400,3.2078,3309.0,3308.3,3.2078]
[1765329497103,3.2078,3309.0,3308.3,3.21233754]
[1765329497398,1.4326,3308.4,3308.3,3.21233754]
[1765329497602,1.4326,3308.4,3308.3,3.90663754]
[1765329498301,0.7195,3308.4,3308.3,3.90663754]
[1765329498603,0.00453754,3308.7,3308.3,4.58023754]
[1765329498805,0.00453754,3308.7,3308.6,1.3679]
[1765329499798,3.754e-05,3308.7,3308.6,1.3679]
[1765329500399,1.43263754,3308.7,3308.6,0.6943]
[1765329500596,0.7195,3308.4,3308.3,3.90663754]
[1765329501011,3.754e-05,3308.7,3308.3,4.58023754]
[1765329501301,3.754e-05,3308.7,3308.5,0.4192]
[1765329501697,3.9273,3309.4,3309.3,1.3679]
[1765329501902,3.2078,3309.4,3309.3,1.3679]
[1765329502099,3.2078,3309.9,3309.3,1.3679]
[1765329502501,4.6404,3309.9,3309.8,0.6943]
[1765329502702,0.7195,3309.6,3309.5,0.4192]
[1765329502900,1.4326,3309.6,3309.0,0.4192]
[1765329503899,0.7195,3309.6,3309.5,1.8138]
[1765329504497,3.2078,3309.9,3309.5,1.8138]
[1765329504899,3.9371,3309.9,3309.8,0.735]
[1765329505101,4.634,3309.9,3309.5,0.4148]
[1765329505302,1.4262,3309.6,3309.5,0.4148]
[1765329505500,0.7293,3309.6,3309.5,1.1498]
[1765329505705,1.4262,3309.6,3309.5,1.1498]
[1765329506102,1.4262,3309.6,3309.0,0.4192]
[1765329506306,0.7293,3309.1,3309.0,1.1542]
[1765329506507,1.4262,3309.1,3309.0,1.1542]
[1765329506712,3.35885,3309.9,3309.0,1.8589]
[1765329506906,2.06421401,3309.8,3309.2,3.2078]
[1765329507114,1.4262,3309.8,3309.2,3.2078]
[1765329507308,3.9371,3309.9,3309.8,1.4397]
[1765329507514,4.634,3309.9,3309.5,0.4148]
[1765329507713,1.4262,3309.6,3309.5,1.1498]
[1765329507908,3.2078,3309.9,3309.8,1.4397]
[1765329508110,4.634,3309.9,3309.5,0.4148]
[1765329508310,3.2078,3309.9,3309.5,1.8545]
[1765329509319,1.36912352,3309.8,3309.7,0.735]
[1765329509523,1.36912352,3309.8,3309.7,1.4397]
[1765329509718,2.06602352,3309.8,3309.7,1.4397]
[1765329509919,2.06602352,3309.8,3309.7,0.735]
[1765329510417,1.4262,3309.6,3309.5,1.1498]
[1765329510625,0.7293,3309.3,3309.2,3.2078]
[1765329510919,1.4262,3309.3,3309.2,3.2078]
[1765329511325,1.4262,3309.3,3309.2,3.9428]
[1765329511920,3.2078,3309.9,3308.8,4.6475]
[1765329511921,0.15105,3309.8,3308.8,4.6475]
[1765329512122,1.0354721,3309.8,3308.8,4.6475]
[1765329512318,1.4262,3308.9,3308.8,3.2078]
[1765329512719,1.4262,3308.9,3308.8,4.6475]
[1765329512921,0.7293,3308.9,3308.8,4.6475]
[1765329513220,1.36927435,3309.4,3309.3,1.4397]
[1765329513421,0.63997435,3309.4,3309.3,1.4397]
[1765329513612,3.2078,3309.5,3309.0,0.4148]
[1765329513613,3.2078,3309.5,3309.4,1.4397]
[1765329514523,4.634,3309.5,3309.4,0.735]
[1765329514720,4.634,3309.5,3309.0,0.4148]
[1765329514925,3.9371,3309.5,3309.4,1.4397]
[1765329515122,3.2078,3309.5,3309.4,1.4397]
[1765329515525,3.2078,3309.5,3309.0,0.4148]
[1765329515526,5.27439023,3309.5,3309.0,0.4148]
[1765329515724,3.2078,3309.5,3309.0,1.8545]
[1765329516228,0.64058939,3309.4,3309.0,1.8545]
[1765329516423,3.2078,3309.5,3309.0,1.8545]
[1765329517226,3.2078,3309.5,3309.4,1.4397]
[1765329517419,3.84865855,3309.5,3309.4,1.4397]
[1765329517825,3.2078,3309.5,3309.4,1.4397]
[1765329518831,0.7293,3309.6,3309.5,1.8545]
[1765329519226,1.4262,3309.6,3309.5,1.1498]
[1765329519424,0.7293,3309.3,3309.2,1.4397]
[1765329519629,1.4262,3309.3,3309.2,0.735]
[1765329520025,1.4262,3309.3,3309.2,1.4397]
[1765329520225,3.2078,3309.9,3309.2,1.4397]
[1765329520530,0.64130288,3309.8,3309.2,1.4397]
[1765329520730,0.64130288,3309.8,3309.2,4.6475]
[1765329521232,1.37060288,3309.8,3309.7,1.4397]
[1765329522128,2.06750288,3309.8,3309.7,1.4397]
[1765329522437,1.37060288,3309.8,3309.7,1.4397]
[1765329523328,0.64130288,3309.8,3309.7,1.4397]
[1765329523828,3.2078,3309.9,3309.8,1.4397]
[1765329524029,4.57815345,3309.9,3309.8,1.4397]
[1765329524223,3.84885345,3309.9,3309.8,1.4397]
[1765329525336,3.2078,3309.9,3309.8,1.4397]
[1765329526436,0.00717321,3310.2,3310.1,1.4397]
[1765329527127,0.73647321,3310.2,3310.1,1.4397]
[1765329527327,1.43337321,3310.2,3310.1,1.4397]
[1765329528330,0.00717321,3310.2,3310.1,1.4397]
[1765329533235,1.3736,3309.9,3309.8,3.9108]
[1765329533530,1.38077321,3310.2,3310.1,0.703]
[1765329534133,1.3736,3309.9,3309.8,3.2078]
[1765329534840,0.6969,3309.6,3309.5,1.8292]
[1765329535542,1.3736,3309.6,3309.5,1.8292]
[1765329535742,0.6969,3309.6,3309.5,1.8292]
[1765329536837,0.64843014,3310.2,3309.5,1.8292]
[1765329537340,1.3736,3309.6,3309.5,1.1178]
[1765329537543,1.3736,3309.4,3309.3,3.9108]
[1765329537841,1.3736,3309.4,3309.3,4.6222]
[1765329538647,1.3736,3309.4,3309.3,3.2078]
[1765329540040,1.3736,3309.4,3309.3,3.9108]
[1765329541444,1.3736,3308.9,3308.8,3.9108]
[1765329541637,0.6969,3308.9,3308.8,4.6222]
[1765329543444,1.3736,3308.9,3308.8,4.6222]
[1765329543633,0.6969,3308.9,3308.8,4.6222]
[1765329543837,1.3736,3308.5,3308.4,3.9108]
[1765329544143,3.5576,3309.0,3308.9,0.703]
[1765329544144,4.5814,3309.0,3308.9,0.703]
[1765329544944,4.5814,3309.0,3308.5,0.428]
[1765329545241,4.5814,3309.0,3308.4,3.2078]
[1765329545242,1.3736,3308.5,3308.4,3.2078]
[1765329545441,1.3736,3308.4,3308.3,0.00453754]
[1765329547443,1.3736,3308.4,3308.3,0.70753754]
[1765329547744,1.3736,3308.4,3308.3,0.00453754]
[1765329548445,3.9047,3308.6,3308.5,1.8424]
[1765329548837,3.9047,3309.0,3308.9,1.4144]
[1765329549034,3.2078,3309.0,3308.9,1.4144]
[1765329549740,4.5814,3309.6,3309.5,0.703]
[1765329550140,3.2078,3309.6,3309.5,1.8424]
[1765329550648,3.2078,3310.1,3309.5,1.8424]
[1765329551247,3.2078,3310.1,3310.0,0.703]
[1765329551248,4.5814,3310.1,3310.0,0.703]
[1765329551545,3.9047,3310.1,3310.0,1.8424]
[1765329551945,3.9047,3310.1,3310.0,0.428]
[1765329551946,4.5814,3310.1,3310.0,0.428]
[1765329552641,4.5814,3310.1,3310.0,1.131]
[1765329552845,4.5814,3310.1,3310.0,1.8424]
[1765329553441,3.2078,3310.1,3310.0,1.8424]
[1765329553643,0.00717321,3310.2,3310.1,1.4144]
[1765329554043,0.70407321,3310.2,3310.1,1.4144]
[1765329554349,0.00717321,3310.2,3310.1,1.4144]
[1765329556649,3.2078,3311.0,3310.9,1.4144]
[1765329556856,4.5814,3311.5,3311.4,0.703]
[1765329557046,4.5814,3311.5,3311.0,0.428]
[1765329557550,4.58387561,3311.5,3311.0,0.43109767]
[1765329557752,4.58387561,3311.5,3311.4,0.703]
[1765329558552,3.90717561,3311.5,3311.4,1.4144]
[1765329559559,4.58387561,3311.5,3311.4,0.703]
[1765329559756,3.90717561,3311.5,3311.4,1.4144]
[1765329559957,4.58387561,3311.5,3311.4,1.4144]
[1765329560155,1.3736,3311.1,3311.0,1.13409767]
[1765329560455,0.6969,3311.1,3311.0,1.84549767]
[1765329560851,3.21027561,3311.5,3311.0,1.84549767]
[1765329561246,0.6969,3311.1,3311.0,1.84549767]
[1765329562152,0.6969,3311.1,3311.0,1.13409767]
[1765329562153,1.3736,3311.1,3311.0,1.13409767]
[1765329562353,3.21027561,3311.5,3311.0,1.84549767]
[1765329562557,4.58387561,3311.5,3311.4,0.703]
[1765329562955,4.58387561,3311.5,3311.0,0.43109767]
[1765329563350,3.90717561,3311.5,3311.4,1.3907]
[1765329563555,3.21027561,3311.5,3311.4,1.3907]
[1765329563858,0.00247561,3311.5,3311.4,1.3907]
[1765329564257,0.00247561,3311.5,3311.1,3.2078]
[1765329564258,1.39127561,3311.5,3311.1,3.2078]
[1765329564467,1.39127561,3311.5,3311.1,4.614]
[1765329564468,0.6918,3311.2,3311.1,4.614]
[1765329564650,0.69427561,3311.5,3311.4,1.4062]
[1765329564853,0.00247561,3311.5,3311.4,1.4062]
[1765329565050,0.00453042,3311.6,3311.1,3.2078]
[1765329565051,0.00453042,3311.6,3311.5,1.8068]
[1765329565260,0.00453042,3311.6,3311.5,5.0146]
[1765329566048,0.0067981,3311.6,3311.5,5.0146]
[1765329566256,3.2078,3312.7,3311.6,0.15097]
[1765329566560,3.2078,3312.7,3312.0,3.6152]
[1765329567158,3.21378471,3312.7,3312.0,3.6152]
[1765329567658,3.21378471,3312.7,3312.6,1.4151]
[1765329567957,0.00598471,3312.7,3312.6,1.4151]
[1765329569365,1.4021,3312.5,3312.4,3.2078]
[1765329569560,0.6843,3312.1,3312.0,4.3494]
[1765329569765,3.21378471,3312.7,3312.0,5.0303]
[1765329570354,1.4021,3312.1,3312.0,3.6152]
[1765329570556,0.6843,3311.6,3311.5,4.3494]
[1765329570865,1.4021,3311.6,3311.5,4.3494]
[1765329571063,3.2078,3312.3,3311.5,5.0303]
[1765329573161,0.6843,3311.6,3311.5,5.0303]
[1765329573367,1.4021,3311.6,3311.5,3.2078]
[1765329573970,0.6843,3311.1,3311.0,5.05399767]
[1765329574259,1.4021,3311.1,3311.0,4.37309767]
[1765329574462,3.2078,3311.8,3311.0,5.05399767]
[1765329575472,3.2078,3311.8,3311.7,1.4151]
[1765329575667,3.2078,3312.3,3311.7,1.4151]
[1765329575969,3.8921,3312.3,3312.2,1.4151]
[1765329576465,3.21378471,3312.7,3312.2,1.4151]
[1765329576670,3.89808471,3312.7,3312.6,0.7342]
[1765329576873,3.89808471,3312.7,3312.6,1.4151]
[1765329577664,1.4021,3312.6,3312.5,0.4074]
[1765329577865,1.4021,3312.6,3312.0,0.4074]
[1765329578173,3.21378471,3312.7,3312.6,0.7342]
[1765329578373,3.89808471,3312.7,3312.6,1.4151]
[1765329579371,3.21378471,3312.7,3312.6,1.4151]
[1765329579571,0.00598471,3312.7,3312.6,1.4151]
[1765329580165,0.00598471,3312.7,3312.5,0.4074]
[1765329580166,1.4021,3312.6,3312.5,0.4074]
[1765329580364,1.4021,3312.5,3312.0,3.6152]
[1765329580765,0.6843,3312.1,3312.0,4.3494]
[1765329581272,1.4021,3312.1,3312.0,3.2078]
[1765329581471,3.2078,3312.3,3312.0,1.1416]
[1765329581675,1.4021,3312.1,3311.5,3.6152]
[1765329582873,0.6843,3312.1,3312.0,1.1416]
[1765329583672,1.4021,3312.1,3312.0,0.4074]
[1765329583884,1.4021,3312.1,3311.5,3.6152]
[1765329584574,3.2078,3312.3,3312.0,1.8225]
[1765329584773,3.8921,3312.3,3312.2,0.7342]
[1765329584965,1.4021,3312.1,3312.0,0.4074]
[1765329585169,1.4021,3312.1,3311.5,3.6152]
[1765329585769,1.4021,3312.1,3312.0,0.7342]
[1765329585971,3.2078,3312.3,3312.2,1.4151]
[1765329586770,0.6843,3312.1,3312.0,1.1416]
[1765329587077,1.4021,3312.1,3311.5,3.76617]
[1765329587281,1.4021,3312.1,3312.0,0.7342]
[1765329587477,0.6843,3312.1,3312.0,1.8225]
[1765329590071,3.2078,3312.3,3312.2,1.4151]
[1765329590376,3.21378471,3312.7,3312.6,1.4151]
[1765329590572,3.85473023,3312.7,3312.6,1.4151]
[1765329590773,4.53903023,3312.7,3312.6,1.4151]
[1765329591167,1.4021,3312.6,3312.5,0.7342]
[1765329591364,1.4021,3312.6,3312.5,1.8225]
[1765329591564,0.6843,3312.6,3312.5,1.8225]
[1765329592072,3.21378471,3312.7,3312.6,1.4151]
[1765329592775,0.00598471,3312.7,3312.6,1.4151]
[1765329593078,3.2078,3313.2,3313.1,1.4324]
[1765329593274,3.84899602,3313.2,3313.1,1.4324]
[1765329593980,3.85270369,3313.2,3313.1,1.4324]
[1765329594473,1.4052,3313.1,3313.0,0.4074]
[1765329594676,3.21150767,3313.2,3312.8,1.40703042]
[1765329594677,0.6999,3312.9,3312.8,1.40703042]
[1765329594877,0.6999,3312.9,3312.8,0.70883042]
[1765329594878,1.4052,3312.9,3312.8,0.70883042]
[1765329595069,0.6999,3312.9,3312.8,1.40703042]
[1765329595466,4.61670767,3313.2,3313.1,0.7043]
[1765329595769,4.61670767,3313.2,3312.8,0.00453042]
[1765329596477,3.21150767,3313.2,3313.1,1.4025]
[1765329597381,3.91140767,3313.2,3313.1,1.4025]
[1765329597573,4.61670767,3313.2,3313.1,0.7043]
[1765329597877,3.21150767,3313.2,3313.1,1.4025]
[1765329598177,3.21150767,3313.2,3313.1,0.7043]
[1765329598379,3.91140767,3313.2,3313.1,0.7043]
[1765329598578,3.91140767,3313.2,3313.1,1.4025]
[1765329598777,1.4052,3313.1,3313.0,0.4067]
[1765329598980,1.4052,3312.9,3312.8,0.00453042]
[1765329599180,1.4052,3312.9,3312.8,0.70883042]
[1765329599479,0.6999,3312.9,3312.8,1.40703042]
[1765329599885,3.91140767,3313.2,3313.1,1.4025]
[1765329600084,3.21150767,3313.2,3313.1,1.4025]
[1765329600485,3.91140767,3313.2,3313.1,1.4025]
[1765329600784,1.4052,3313.1,3313.0,1.111]
[1765329600980,1.4052,3312.9,3312.8,0.70883042]
[1765329601179,1.4052,3312.9,3312.8,0.00453042]
[1765329602373,2.04326078,3312.9,3312.8,0.00453042]
[1765329603684,2.04330675,3312.9,3312.8,0.00453042]
[1765329604683,0.6999,3312.9,3312.8,1.40703042]
[1765329605084,1.4052,3312.9,3312.8,0.70883042]
[1765329605282,1.4052,3312.9,3312.8,0.00453042]
[1765329605483,2.28979583,3312.9,3312.8,0.00453042]
[1765329605683,8.28979583,3312.9,3312.0,0.4074]
[1765329605882,1.4052,3312.5,3312.0,0.4074]
[1765329606780,1.4052,3312.5,3312.1,0.00453042]
[1765329607085,1.4052,3312.2,3312.1,0.00453042]
[1765329609282,2.2894444,3312.2,3311.0,5.39284943]
[1765329609484,3.2078,3311.8,3311.0,3.61759767]
[1765329609685,0.6999,3311.1,3311.0,5.02009767]
[1765329611889,1.4052,3311.1,3311.0,3.21089767]
[1765329613190,1.4052,3311.1,3311.0,0.00309767]
[1765329613991,0.6999,3311.1,3311.0,1.86849767]
[1765329614190,4.6194,3311.4,3311.3,0.7282]
[1765329614395,0.7405,3311.1,3311.0,1.86849767]
[1765329614784,1.4116,3311.1,3311.0,1.86849767]
[1765329616394,0.7405,3311.1,3311.0,1.86849767]
[1765329617092,3.9483,3311.4,3311.3,0.7282]
[1765329617306,4.6194,3311.8,3311.7,0.7282]
[1765329617483,4.6194,3311.8,3311.2,0.7282]
[1765329617484,1.4116,3311.3,3311.2,0.7282]
[1765329617796,1.4116,3311.1,3311.0,1.86849767]
[1765329617991,3.2078,3311.8,3311.0,1.86849767]
[1765329618398,0.7405,3311.1,3311.0,1.86849767]
[1765329619099,3.2078,3311.8,3311.0,1.86849767]
[1765329620300,0.7405,3311.1,3311.0,1.86849767]
[1765329620501,1.4116,3311.1,3311.0,1.86849767]
[1765329620800,1.4116,3311.1,3311.0,0.00309767]
[1765329623092,0.7405,3311.1,3311.0,1.83219767]
[1765329623501,1.4464,3311.1,3311.0,1.83219767]
[1765329623695,1.4464,3311.1,3311.0,1.13689767]
[1765329624502,1.4464,3311.1,3311.0,1.83219767]
[1765329624702,1.4464,3311.1,3311.0,0.00309767]
[1765329625306,1.4464,3311.1,3311.0,0.70639767]
[1765329626003,3.2078,3311.4,3311.0,1.80729767]
[1765329626213,3.9254,3311.4,3311.3,1.3986]
[1765329626705,3.2078,3311.4,3311.3,1.3986]